fUST/lending_fUST_20240820
["ID","MTS","AMOUNT","RATE_DAILY","PERIOD"]
[335357882,1724158238475,-500.0,0.00013699,2]
[335357883,1724158238484,-495.18751791,0.00013699,2]
[335357884,1724158238493,-500.0,0.00013699,2]
[335357885,1724158238503,-495.19490276,0.00013971,2]
[335357886,1724158238513,-649.75766977,0.00014201,2]
[335357887,1724158238522,-733.330704,0.00014247,2]
[335357888,1724158238531,-200.0,0.0001435,2]
[335357889,1724158238540,-421.3410213,0.00014989,2]
[335357890,1724158238550,-500.0,0.00014989,2]
[335357891,1724158238559,-500.0,0.00014989,2]
[335357892,1724158238568,-500.0,0.00014989,2]
[335357893,1724158238578,-500.0,0.00014989,2]
[335357894,1724158238587,-500.0,0.00014989,2]
[335357895,1724158238596,-500.0,0.00014989,2]
[335357896,1724158238605,-500.0,0.00014989,2]
[335357897,1724158238614,-500.0,0.00014989,2]
[335357898,1724158238623,-500.0,0.00014989,2]
[335357899,1724158238632,-500.0,0.00014989,2]
[335357900,1724158238642,-68826.6191119,0.0001499,2]
[335357901,1724158238651,-98794.0,0.00015,2]
[335357902,1724158238661,-649.75766977,0.00015269,2]
[335357903,1724158238670,-153.0,0.00015457,2]
[335357904,1724158238680,-153.0,0.00015457,2]
[335357905,1724158238689,-153.0,0.00015457,2]
[335357906,1724158238698,-153.0,0.00015457,2]
[335357907,1724158238708,-153.0,0.00015464,2]
[335357908,1724158238717,-478.67831481,0.000157,2]
[335357909,1724158238727,-401.1978182,0.0001572,2]
[335357910,1724158238736,-237.431631,0.0001589,2]
[335357911,1724158238747,-48438.66773773,0.00015899,2]
[335357912,1724158238757,-200.0,0.00015973,2]
[335357913,1724158238768,-200.0,0.00015973,2]
[335357914,1724158238777,-68826.6191119,0.00015989,2]
[335357915,1724158238786,-34413.3095559,0.0001599,2]
[335357916,1724158238796,-80432.60358854,0.00015999,2]
[335357917,1724158238805,-41835.68920378,0.00016,2]
[335357918,1724158238815,-739.78799902,0.00016338,2]
[335357919,1724158238824,-649.75766977,0.00016338,2]
[335357920,1724158238834,-78519.15922181,0.000164,2]
[335357921,1724158238846,-5865.83491116,0.000164,2]
[335357922,1724158238915,-2298.21383922,0.000164,2]
[335357923,1724158238927,-14680.30581081,0.000164,2]
[335357924,1724158238938,-500.0,0.00016438,2]
[335357925,1724158238948,-500.0,0.00016438,2]
[335357926,1724158238958,-501.33387722,0.00016438,2]
[335357927,1724158238968,-528.15149569,0.00016438,2]
[335357928,1724158238978,-500.0,0.00016438,2]
[335357929,1724158238988,-500.0,0.00016438,2]
[335357930,1724158238997,-500.0,0.00016438,2]
[335357931,1724158239007,-500.0,0.00016438,2]
[335357932,1724158239017,-500.0,0.00016438,2]
[335357933,1724158239027,-500.0,0.00016438,2]
[335357934,1724158239036,-254.52971375,0.00016438,2]
[335357935,1724158239046,-500.0,0.00016438,2]
[335357936,1724158239056,-500.0,0.00016438,2]
[335357937,1724158239066,-500.0,0.00016438,2]
[335357938,1724158239077,-500.0,0.00016438,2]
[335357939,1724158239086,-500.0,0.00016438,2]
[335357940,1724158239096,-500.0,0.00016438,2]
[335357941,1724158239106,-500.0,0.00016438,2]
[335357942,1724158239116,-500.0,0.00016438,2]
[335357943,1724158239126,-500.0,0.00016438,2]
[335357944,1724158239136,-500.0,0.00016438,2]
[335357945,1724158239145,-500.0,0.00016438,2]
[335357946,1724158239155,-500.0,0.00016438,2]
[335357947,1724158239164,-500.0,0.00016438,2]
[335357948,1724158239174,-500.0,0.00016438,2]
[335357949,1724158239184,-500.0,0.00016438,2]
[335357950,1724158239194,-635.53173562,0.00016438,2]
[335357951,1724158239203,-500.0,0.00016438,2]
[335357952,1724158239213,-500.0,0.00016438,2]
[335357953,1724158239223,-212.56,0.00016438,2]
[335357954,1724158239232,-500.0,0.00016438,2]
[335357955,1724158239246,-500.0,0.00016438,2]
[335357956,1724158239255,-500.0,0.00016438,2]
[335357957,1724158239265,-500.0,0.00016438,2]
[335357958,1724158239275,-500.0,0.00016438,2]
[335357959,1724158239285,-445.17156164,0.00016438,2]
[335357960,1724158239295,-500.0,0.00016438,2]
[335357961,1724158239304,-500.0,0.00016438,2]
[335357962,1724158239314,-500.0,0.00016438,2]
[335357963,1724158239324,-494.52120852,0.00016438,2]
[335357964,1724158239334,-500.0,0.00016438,2]
[335357965,1724158239343,-500.0,0.00016438,2]
[335357966,1724158239353,-500.0,0.00016438,2]
[335357967,1724158239362,-500.0,0.00016438,2]
[335357968,1724158239371,-577.2536743,0.00016438,2]
[335357969,1724158239381,-256.70365975,0.00016438,2]
[335357970,1724158239391,-500.0,0.00016438,2]
[335357971,1724158239401,-500.0,0.00016438,2]
[335357972,1724158239410,-518.37907927,0.00016438,2]
[335357973,1724158239420,-500.0,0.00016438,2]
[335357974,1724158239430,-500.0,0.00016438,2]
[335357975,1724158239439,-500.0,0.00016438,2]
[335357976,1724158239449,-500.0,0.00016438,2]
[335357977,1724158239459,-500.0,0.00016438,2]
[335357978,1724158239468,-500.0,0.00016438,2]
[335357979,1724158239478,-500.37,0.00016438,2]
[335357980,1724158239488,-500.0,0.00016438,2]
[335357981,1724158239497,-500.0,0.00016438,2]
[335357982,1724158239507,-500.0,0.00016438,2]
[335357984,1724158239516,-500.0,0.00016438,2]
[335357986,1724158239526,-500.0,0.00016438,2]
[335357988,1724158239536,-500.0,0.00016438,2]
[335357990,1724158239545,-500.0,0.00016438,2]
[335357992,1724158239556,-500.0,0.00016438,2]
[335357994,1724158239566,-500.0,0.00016438,2]
[335357996,1724158239575,-500.0,0.00016438,2]
[335357998,1724158239586,-500.0,0.00016438,2]
[335358000,1724158239595,-500.0,0.00016438,2]
[335358002,1724158239605,-504.79898619,0.00016438,2]
[335358004,1724158239614,-503.53893707,0.00016438,2]
[335358007,1724158239624,-735.11,0.00016438,2]
[335358009,1724158239634,-500.0,0.00016438,2]
[335358011,1724158239643,-500.0,0.00016438,2]
[335358013,1724158239652,-500.0,0.00016438,2]
[335358015,1724158239662,-500.0,0.00016438,2]
[335358017,1724158239672,-500.0,0.00016438,2]
[335358019,1724158239686,-500.0,0.00016438,2]
[335358021,1724158239696,-453.64410196,0.00016438,2]
[335358023,1724158239706,-500.0,0.00016438,2]
[335358025,1724158239716,-500.0,0.00016438,2]
[335358027,1724158239725,-512.06790887,0.00016438,2]
[335358029,1724158239735,-505.77653679,0.00016438,2]
[335358031,1724158239744,-500.0,0.00016438,2]
[335358033,1724158239754,-500.0,0.00016438,2]
[335358035,1724158239765,-500.0,0.00016438,2]
[335358037,1724158239774,-500.0,0.00016438,2]
[335358039,1724158239783,-1614.96,0.00016438,2]
[335358041,1724158239793,-164.70142636,0.00016438,2]
[335358045,1724158239815,-335.29857364,0.00016438,2]
[335358047,1724158239825,-500.0,0.00016438,2]
[335358049,1724158239835,-500.0,0.00016438,2]
[335358051,1724158239845,-500.0,0.00016438,2]
[335358053,1724158239857,-500.0,0.00016438,2]
[335358055,1724158239869,-500.0,0.00016438,2]
[335358057,1724158239879,-500.0,0.00016438,2]
[335358059,1724158239888,-503.17705376,0.00016438,2]
[335358061,1724158239898,-500.0,0.00016438,2]
[335358063,1724158239909,-500.93919286,0.00016438,2]
[335358064,1724158239918,-500.0,0.00016438,2]
[335358065,1724158239928,-500.0,0.00016438,2]
[335358067,1724158239937,-523.7757782,0.00016438,2]
[335358082,1724158240074,-500.0,0.00016438,2]
[335358084,1724158240084,-500.0,0.00016438,2]
[335358086,1724158240094,-500.0,0.00016438,2]
[335358088,1724158240104,-501.16466974,0.00016438,2]
[335358090,1724158240114,-500.0,0.00016438,2]
[335358092,1724158240124,-500.0,0.00016438,2]
[335358094,1724158240133,-500.0,0.00016438,2]
[335358095,1724158240143,-500.0,0.00016438,2]
[335358096,1724158240153,-500.0,0.00016438,2]
[335358097,1724158240162,-502.13502828,0.00016438,2]
[335358098,1724158240171,-500.54268529,0.00016438,2]
[335358099,1724158240181,-507.17362541,0.00016438,2]
[335358100,1724158240191,-500.0,0.00016438,2]
[335358101,1724158240201,-500.0,0.00016438,2]
[335358102,1724158240211,-500.0,0.00016438,2]
[335358103,1724158240221,-502.38509024,0.00016438,2]
[335358104,1724158240230,-500.5986862,0.00016438,2]
[335358105,1724158240245,-431.74069529,0.00016438,2]
[335358106,1724158240255,-500.0,0.00016438,2]
[335358107,1724158240264,-500.0,0.00016438,2]
[335358108,1724158240274,-500.0,0.00016438,2]
[335358109,1724158240283,-500.0,0.00016438,2]
[335358110,1724158240292,-500.0,0.00016438,2]
[335358111,1724158240302,-501.15381276,0.00016438,2]
[335358112,1724158240312,-500.0,0.00016438,2]
[335358113,1724158240324,-500.0,0.00016438,2]
[335358114,1724158240334,-875.53,0.00016438,2]
[335358115,1724158240343,-500.0,0.00016438,2]
[335358116,1724158240353,-500.0,0.00016438,2]
[335358117,1724158240362,-502.38568884,0.00016438,2]
[335358118,1724158240371,-500.0,0.00016438,2]
[335358119,1724158240381,-500.0,0.00016438,2]
[335358120,1724158240390,-500.0,0.00016438,2]
[335358121,1724158240399,-500.0,0.00016438,2]
[335358122,1724158240409,-163.64626591,0.00016438,2]
[335358123,1724158240896,-893.31628977,9.589e-05,2]
[335358124,1724158240907,-289.4392329,0.00010739,2]
[335358125,1724158240917,-461.08774715,0.00016438,2]
[335358126,1724158240927,-500.0,0.00016438,2]
[335358127,1724158240936,-500.0,0.00016438,2]
[335358128,1724158240946,-500.0,0.00016438,2]
[335358129,1724158240955,-500.0,0.00016438,2]
[335358130,1724158240965,-500.0,0.00016438,2]
[335358131,1724158240975,-155.93219572,0.00016438,2]
[335358132,1724158240985,-501.77593548,0.00016438,2]
[335358133,1724158240994,-396.90635721,0.00016438,2]
[335358134,1724158241004,-500.0,0.00016438,2]
[335358135,1724158241014,-500.0,0.00016438,2]
[335358136,1724158241024,-500.85401284,0.00016438,2]
[335358137,1724158241034,-500.11931272,0.00016438,2]
[335358138,1724158241044,-600.0,0.00016438,2]
[335358139,1724158241053,-500.0,0.00016438,2]
[335358140,1724158241063,-500.0,0.00016438,2]
[335358141,1724158241074,-516.5020625,0.00016438,2]
[335358142,1724158241083,-511.70509182,0.00016438,2]
[335358143,1724158241094,-513.15007194,0.00016438,2]
[335358144,1724158241104,-500.0,0.00016438,2]
[335358145,1724158241114,-328.18773977,0.00016438,2]
[335358146,1724158241124,-500.0,0.00016438,2]
[335358147,1724158241134,-507.01989121,0.00016438,2]
[335358148,1724158241144,-500.0,0.00016438,2]
[335358149,1724158241154,-500.0,0.00016438,2]
[335358150,1724158241163,-500.0,0.00016438,2]
[335358151,1724158241173,-500.0,0.00016438,2]
[335358152,1724158241182,-500.0,0.00016438,2]
[335358153,1724158241193,-500.0,0.00016438,2]
[335358154,1724158241203,-500.0,0.00016438,2]
[335358155,1724158241212,-500.0,0.00016438,2]
[335358156,1724158241222,-500.0,0.00016438,2]
[335358157,1724158241231,-507.46312568,0.00016438,2]
[335358158,1724158241245,-500.0,0.00016438,2]
[335358159,1724158241255,-500.0,0.00016438,2]
[335358160,1724158241265,-500.0,0.00016438,2]
[335358161,1724158241275,-500.0,0.00016438,2]
[335358162,1724158241286,-500.0,0.00016438,2]
[335358163,1724158241296,-500.0,0.00016438,2]
[335358164,1724158241305,-500.0,0.00016438,2]
[335358165,1724158241316,-501.39772472,0.00016438,2]
[335358166,1724158241334,-500.0,0.00016438,2]
[335358167,1724158241343,-500.0,0.00016438,2]
[335358168,1724158241353,-500.0,0.00016438,2]
[335358169,1724158241363,-578.95351904,0.00016438,2]
[335358170,1724158241373,-500.0,0.00016438,2]
[335358171,1724158241382,-501.13588741,0.00016438,2]
[335358172,1724158241392,-500.0,0.00016438,2]
[335358173,1724158241402,-512.00156767,0.00016438,2]
[335358174,1724158241412,-500.0,0.00016438,2]
[335358175,1724158241422,-500.0,0.00016438,2]
[335358176,1724158241431,-500.0,0.00016438,2]
[335358177,1724158241441,-500.0,0.00016438,2]
[335358178,1724158241450,-500.0,0.00016438,2]
[335358179,1724158241460,-501.60259315,0.00016438,2]
[335358180,1724158241470,-531.08991792,0.00016438,2]
[335358181,1724158241479,-500.0,0.00016438,2]
[335358182,1724158241489,-500.0,0.00016438,2]
[335358183,1724158241499,-500.0,0.00016438,2]
[335358184,1724158241509,-500.0,0.00016438,2]
[335358185,1724158241518,-500.0,0.00016438,2]
[335358186,1724158241528,-500.57930303,0.00016438,2]
[335358187,1724158241538,-500.0,0.00016438,2]
[335358188,1724158241547,-500.0,0.00016438,2]
[335358189,1724158241556,-500.0,0.00016438,2]
[335358190,1724158241566,-501.53558859,0.00016438,2]
[335358191,1724158241577,-500.0,0.00016438,2]
[335358192,1724158241585,-500.0,0.00016438,2]
[335358193,1724158241595,-500.0,0.00016438,2]
[335358194,1724158241604,-580.2306903,0.00016438,2]
[335358195,1724158241614,-500.0,0.00016438,2]
[335358196,1724158241623,-501.50501301,0.00016438,2]
[335358197,1724158241633,-1000.0,0.00016438,2]
[335358198,1724158241642,-500.0,0.00016438,2]
[335358199,1724158241652,-505.01381328,0.00016438,2]
[335358200,1724158241662,-500.0,0.00016438,2]
[335358201,1724158241673,-504.17105781,0.00016438,2]
[335358202,1724158241682,-503.82597074,0.00016438,2]
[335358203,1724158241692,-480.36090145,0.00016438,2]
[335358204,1724158241702,-500.0,0.00016438,2]
[335358205,1724158241712,-500.0,0.00016438,2]
[335358206,1724158241721,-229.05070244,0.00016438,2]
[335358207,1724158241730,-500.0,0.00016438,2]
[335358208,1724158241739,-502.79927189,0.00016438,2]
[335358209,1724158241749,-500.0,0.00016438,2]
[335358210,1724158241759,-506.59344716,0.00016438,2]
[335358211,1724158241768,-500.0,0.00016438,2]
[335358212,1724158241777,-500.0,0.00016438,2]
[335358213,1724158241787,-500.0,0.00016438,2]
[335358214,1724158241796,-500.0,0.00016438,2]
[335358215,1724158241806,-500.0,0.00016438,2]
[335358216,1724158241816,-500.0,0.00016438,2]
[335358217,1724158241827,-500.0,0.00016438,2]
[335358218,1724158241836,-500.0,0.00016438,2]
[335358219,1724158241847,-500.0,0.00016438,2]
[335358220,1724158241857,-500.0,0.00016438,2]
[335358221,1724158241866,-500.0,0.00016438,2]
[335358222,1724158241876,-500.0,0.00016438,2]
[335358223,1724158241886,-500.0,0.00016438,2]
[335358224,1724158241895,-500.0,0.00016438,2]
[335358225,1724158241905,-501.51801018,0.00016438,2]
[335358226,1724158241915,-500.0,0.00016438,2]
[335358227,1724158241925,-500.8929892,0.00016438,2]
[335358228,1724158241934,-500.0,0.00016438,2]
[335358229,1724158241945,-500.0,0.00016438,2]
[335358230,1724158241955,-500.0,0.00016438,2]
[335358231,1724158241964,-177.81892764,0.00016438,2]
[335358232,1724158241974,-500.0,0.00016438,2]
[335358233,1724158241983,-504.52095337,0.00016438,2]
[335358234,1724158241994,-500.0,0.00016438,2]
[335358235,1724158242004,-500.0,0.00016438,2]
[335358236,1724158242014,-500.0,0.00016438,2]
[335358237,1724158242023,-501.15477062,0.00016438,2]
[335358238,1724158242033,-500.0,0.00016438,2]
[335358239,1724158242042,-279.57087627,0.00016438,2]
[335358240,1724158242054,-501.90928877,0.00016438,2]
[335358241,1724158242064,-500.0,0.00016438,2]
[335358242,1724158242075,-510.9339362,0.00016438,2]
[335358243,1724158242085,-500.0,0.00016438,2]
[335358244,1724158242095,-500.0,0.00016438,2]
[335358245,1724158242105,-500.0,0.00016438,2]
[335358246,1724158242114,-500.0,0.00016438,2]
[335358247,1724158242124,-501.56320326,0.00016438,2]
[335358248,1724158242133,-500.0,0.00016438,2]
[335358249,1724158242142,-420.99149762,0.00016438,2]
[335358250,1724158242152,-504.05457436,0.00016438,2]
[335358252,1724158242161,-503.60765118,0.00016438,2]
[335358254,1724158242170,-500.0,0.00016438,2]
[335358255,1724158242180,-500.0,0.00016438,2]
[335358257,1724158242189,-500.0,0.00016438,2]
[335358258,1724158242199,-500.30739755,0.00016438,2]
[335358259,1724158242208,-500.0,0.00016438,2]
[335358260,1724158242217,-500.33299723,0.00016438,2]
[335358261,1724158242227,-500.0,0.00016438,2]
[335358262,1724158242236,-571.72864269,0.00016438,2]
[335358263,1724158242251,-526.93603472,0.00016438,2]
[335358264,1724158242260,-500.0,0.00016438,2]
[335358265,1724158242269,-1922.69,0.00016438,2]
[335358266,1724158242280,-500.0,0.00016438,2]
[335358267,1724158242290,-500.0,0.00016438,2]
[335358268,1724158242299,-500.0,0.00016438,2]
[335358269,1724158242309,-500.0,0.00016438,2]
[335358270,1724158242320,-500.0,0.00016438,2]
[335358271,1724158242329,-514.46023224,0.00016438,2]
[335358272,1724158242338,-506.87953148,0.00016438,2]
[335358273,1724158242348,-500.0,0.00016438,2]
[335358274,1724158242357,-500.0,0.00016438,2]
[335358275,1724158242366,-500.0,0.00016438,2]
[335358276,1724158242376,-500.0,0.00016438,2]
[335358277,1724158242385,-500.0,0.00016438,2]
[335358278,1724158242395,-500.0,0.00016438,2]
[335358279,1724158242409,-512.41169414,0.00016438,2]
[335358281,1724158242432,-500.0,0.00016438,2]
[335358282,1724158242456,-500.0,0.00016438,2]
[335358284,1724158242478,-500.0,0.00016438,2]
[335358285,1724158242499,-500.0,0.00016438,2]
[335358286,1724158242520,-501.62857219,0.00016438,2]
[335358287,1724158242541,-500.0,0.00016438,2]
[335358288,1724158242561,-500.0,0.00016438,2]
[335358289,1724158242582,-500.0,0.00016438,2]
[335358290,1724158242602,-502.67082172,0.00016438,2]
[335358291,1724158242624,-150.0,0.00016438,2]
[335358292,1724158242645,-500.0,0.00016438,2]
[335358294,1724158242666,-500.0,0.00016438,2]
[335358296,1724158242687,-502.75092201,0.00016438,2]
[335358298,1724158242710,-471.9,0.00016438,2]
[335358300,1724158242732,-500.0,0.00016438,2]
[335358302,1724158242753,-501.58720414,0.00016438,2]
[335358304,1724158242774,-241.0,0.00016438,2]
[335358306,1724158242797,-500.0,0.00016438,2]
[335358308,1724158242821,-500.0,0.00016438,2]
[335358310,1724158242843,-500.0,0.00016438,2]
[335358312,1724158242866,-500.0,0.00016438,2]
[335358314,1724158242887,-500.0,0.00016438,2]
[335358316,1724158242909,-509.94578498,0.00016438,2]
[335358318,1724158242919,-1269.84,0.00016438,2]
[335358320,1724158242929,-500.0,0.00016438,2]
[335358322,1724158242938,-500.0,0.00016438,2]
[335358324,1724158242947,-502.02837971,0.00016438,2]
[335358326,1724158242956,-360.58791304,0.00016438,2]
[335358328,1724158242964,-500.0,0.00016438,2]
[335358330,1724158242974,-500.0,0.00016438,2]
[335358332,1724158242983,-500.0,0.00016438,2]
[335358334,1724158242992,-500.0,0.00016438,2]
[335358336,1724158243001,-500.0,0.00016438,2]
[335358338,1724158243010,-200.0,0.00016438,2]
[335358339,1724158243019,-500.0,0.00016438,2]
[335358341,1724158243028,-500.0,0.00016438,2]
[335358343,1724158243037,-500.0,0.00016438,2]
[335358345,1724158243046,-500.0,0.00016438,2]
[335358347,1724158243054,-500.0,0.00016438,2]
[335358349,1724158243063,-500.0,0.00016438,2]
[335358351,1724158243072,-500.0,0.00016438,2]
[335358353,1724158243081,-500.0,0.00016438,2]
[335358355,1724158243090,-1806.05,0.00016438,2]
[335358357,1724158243098,-506.05463301,0.00016438,2]
[335358359,1724158243108,-2000.0,0.00016438,2]
[335358361,1724158243118,-500.0,0.00016438,2]
[335358363,1724158243127,-500.0,0.00016438,2]
[335358365,1724158243136,-500.0,0.00016438,2]
[335358367,1724158243145,-500.0,0.00016438,2]
[335358368,1724158243153,-512.16275258,0.00016438,2]
[335358370,1724158243162,-500.0,0.00016438,2]
[335358372,1724158243171,-526.11025138,0.00016438,2]
[335358374,1724158243180,-500.0,0.00016438,2]
[335358376,1724158243189,-500.0,0.00016438,2]
[335358378,1724158243198,-500.0,0.00016438,2]
[335358380,1724158243208,-500.0,0.00016438,2]
[335358381,1724158243216,-500.0,0.00016438,2]
[335358382,1724158243225,-500.0,0.00016438,2]
[335358383,1724158243234,-500.0,0.00016438,2]
[335358384,1724158243248,-501.37109774,0.00016438,2]
[335358385,1724158243257,-500.0,0.00016438,2]
[335358386,1724158243266,-500.41807037,0.00016438,2]
[335358387,1724158243276,-500.0,0.00016438,2]
[335358388,1724158243287,-512.22303326,0.00016438,2]
[335358389,1724158243296,-500.0,0.00016438,2]
[335358390,1724158243305,-1177.97,0.00016438,2]
[335358391,1724158243317,-508.13774387,0.00016438,2]
[335358392,1724158243326,-492.83835176,0.00016438,2]
[335358393,1724158243335,-503.96328821,0.00016438,2]
[335358394,1724158243344,-500.0,0.00016438,2]
[335358395,1724158243354,-500.0,0.00016438,2]
[335358396,1724158243362,-500.0,0.00016438,2]
[335358397,1724158243372,-500.0,0.00016438,2]
[335358398,1724158243381,-500.0,0.00016438,2]
[335358399,1724158243389,-500.0,0.00016438,2]
[335358400,1724158243398,-500.0,0.00016438,2]
[335358401,1724158243407,-500.0,0.00016438,2]
[335358402,1724158243417,-500.0,0.00016438,2]
[335358403,1724158243426,-500.0,0.00016438,2]
[335358404,1724158243435,-500.0,0.00016438,2]
[335358405,1724158243445,-503.51181384,0.00016438,2]
[335358406,1724158243454,-500.0,0.00016438,2]
[335358407,1724158243463,-500.0,0.00016438,2]
[335358408,1724158243472,-756.02,0.00016438,2]
[335358409,1724158243480,-500.0,0.00016438,2]
[335358410,1724158243489,-500.0,0.00016438,2]
[335358411,1724158243498,-500.0,0.00016438,2]
[335358412,1724158243507,-500.0,0.00016438,2]
[335358413,1724158243516,-500.0,0.00016438,2]
[335358414,1724158243525,-500.0,0.00016438,2]
[335358415,1724158243534,-500.0,0.00016438,2]
[335358416,1724158243543,-500.0,0.00016438,2]
[335358417,1724158243552,-500.0,0.00016438,2]
[335358418,1724158243561,-500.0,0.00016438,2]
[335358419,1724158243570,-500.0,0.00016438,2]
[335358420,1724158243578,-500.0,0.00016438,2]
[335358421,1724158243587,-500.0,0.00016438,2]
[335358422,1724158243597,-500.0,0.00016438,2]
[335358423,1724158243606,-500.0,0.00016438,2]
[335358424,1724158243615,-500.0,0.00016438,2]
[335358425,1724158243624,-500.0,0.00016438,2]
[335358426,1724158243633,-500.0,0.00016438,2]
[335358427,1724158243644,-500.0,0.00016438,2]
[335358428,1724158243653,-500.0,0.00016438,2]
[335358429,1724158243662,-500.0,0.00016438,2]
[335358430,1724158243671,-500.0,0.00016438,2]
[335358431,1724158243680,-500.0,0.00016438,2]
[335358432,1724158243690,-500.0,0.00016438,2]
[335358433,1724158243699,-446.69391484,0.00016438,2]
[335358434,1724158243708,-340.55325112,0.00016438,2]
[335358435,1724158243717,-511.49,0.00016438,2]
[335358436,1724158243726,-500.0,0.00016438,2]
[335358437,1724158243737,-502.6666143,0.00016438,2]
[335358438,1724158243746,-478.46707984,0.00016438,2]
[335358439,1724158243755,-504.00718194,0.00016438,2]
[335358440,1724158243764,-500.0,0.00016438,2]
[335358441,1724158243773,-500.0,0.00016438,2]
[335358442,1724158243897,-1067.26,0.00016438,2]
[335358443,1724158243908,-500.9631803,0.00016438,2]
[335358444,1724158243918,-500.0,0.00016438,2]
[335358445,1724158243928,-500.0,0.00016438,2]
[335358446,1724158243937,-501.72262432,0.00016438,2]
[335358447,1724158243946,-500.98672507,0.00016438,2]
[335358448,1724158243955,-500.0,0.00016438,2]
[335358449,1724158243965,-505.34351822,0.00016438,2]
[335358450,1724158243974,-503.58228305,0.00016438,2]
[335358451,1724158243983,-619.87,0.00016438,2]
[335358452,1724158243992,-503.56559324,0.00016438,2]
[335358453,1724158244001,-500.0,0.00016438,2]
[335358454,1724158244010,-502.70414768,0.00016438,2]
[335358455,1724158244019,-500.0,0.00016438,2]
[335358456,1724158244028,-505.1901417,0.00016438,2]
[335358457,1724158244038,-500.0,0.00016438,2]
[335358458,1724158244047,-258.54224197,0.00016438,2]
[335358459,1724158244056,-500.0,0.00016438,2]
[335358460,1724158244064,-500.0,0.00016438,2]
[335358461,1724158244074,-500.0,0.00016438,2]
[335358462,1724158244084,-483.43006335,0.00016438,2]
[335358463,1724158244093,-500.0,0.00016438,2]
[335358464,1724158244102,-539.07605786,0.00016438,2]
[335358465,1724158244111,-500.0,0.00016438,2]
[335358466,1724158244122,-500.0,0.00016438,2]
[335358467,1724158244133,-504.5727443,0.00016438,2]
[335358468,1724158244145,-500.0,0.00016438,2]
[335358469,1724158244155,-500.0,0.00016438,2]
[335358470,1724158244164,-500.0,0.00016438,2]
[335358471,1724158244173,-500.0,0.00016438,2]
[335358472,1724158244182,-500.0,0.00016438,2]
[335358473,1724158244190,-500.0,0.00016438,2]
[335358474,1724158244199,-501.97462119,0.00016438,2]
[335358475,1724158244208,-2977.11,0.00016438,2]
[335358476,1724158244218,-500.0,0.00016438,2]
[335358477,1724158244226,-500.0,0.00016438,2]
[335358478,1724158244236,-500.0,0.00016438,2]
[335358479,1724158244250,-500.0,0.00016438,2]
[335358480,1724158244259,-500.0,0.00016438,2]
[335358481,1724158244268,-500.0,0.00016438,2]
[335358482,1724158244277,-500.0,0.00016438,2]
[335358483,1724158244288,-500.0,0.00016438,2]
[335358484,1724158244297,-507.26650594,0.00016438,2]
[335358485,1724158244306,-500.0,0.00016438,2]
[335358486,1724158244315,-502.04518582,0.00016438,2]
[335358487,1724158244328,-500.0,0.00016438,2]
[335358488,1724158244337,-500.0,0.00016438,2]
[335358489,1724158244346,-500.0,0.00016438,2]
[335358490,1724158244355,-500.0,0.00016438,2]
[335358491,1724158244364,-500.0,0.00016438,2]
[335358492,1724158244373,-503.30289728,0.00016438,2]